[Event "Paracin Open 2020"]
[Site "Paracin"]
[Date "2020.07.04"]
[Round "3.13"]
[White "Sredojevic, Ivan"]
[Black "Micic, Aleksa"]
[Result "1-0"]
[ECO "B51"]
[WhiteElo "2239"]
[BlackElo "2008"]
[Annotator "ChessBase"]
[PlyCount "63"]
[EventDate "2020.07.03"]
[EventType "swiss"]
[EventCountry "SRB"]
[SourceTitle "playchess.com"]
[Source "ChessBase"]
[SourceQuality "1"]
[TimeControl "5400+30"]

1. e4 {[%emt 0:00:00]} c5 {[%emt 0:00:00]} 2. Nf3 {[%emt 0:00:00]} d6 {[%emt 0:00:07]} 3. Bb5+ {[%emt 0:00:28]} Nd7 {[%emt 0:00:07]} 4. d4 {[%emt 0:00:19]} cxd4 {[%emt 0:00:44]} 5. Qxd4 {[%emt 0:00:06]} a6 {[%emt 0:00:02]} 6. Bxd7+ {[%emt 0:00:07]} Bxd7 {[%emt 0:00:06]} 7. Nc3 {[%emt 0:00:04]} Nf6 {[%emt 0:07:03]} 8. Bg5 {[%emt 0:05:26]} e5 {[%emt 0:06:59]} 9. Qd3 {[%emt 0:02:02]} Bc6 {[%emt 0:02:13]} 10. Nd2 {[%emt 0:03:25]} Be7 {[%emt 0:08:46]} 11. Bxf6 {[%emt 0:05:22]} Bxf6 {[%emt 0:01:20]} 12. Nc4 {[%emt 0:00:25]} Be7 {[%emt 0:01:13]} 13. O-O-O {[%emt 0:00:21]} O-O {[%emt 0:01:04]} 14. Kb1 {[%emt 0:08:46]} Qc7 {[%emt 0:11:00]} 15. Ne3 {[%emt 0:00:32]} Rad8 {[%emt 0:06:35]} 16. Ncd5 {[%emt 0:00:42]} Bxd5 {[%emt 0:05:05]} 17. Nxd5 {[%emt 0:00:06]} Qd7 {[%emt 0:00:09]} 18. h4 {[%emt 0:00:14]} Rfe8 {[%emt 0:03:06]} 19. Qf3 {[%emt 0:03:31]} b5 {[%emt 0:09:03]} 20. g4 {[%emt 0:01:06]} Rb8 {[%emt 0:02:17]} 21. g5 {[%emt 0:00:42]} Rec8 {[%emt 0:03:31]} 22. Qf5 {[%emt 0:00:21]} Qd8 {[%emt 0:02:13]} 23. Rdg1 {[%emt 0:02:53]} Rc5 {[%emt 0:07:42]} 24. h5 {[%emt 0:01:42]} Rxd5 {[%emt 0:00:17]} 25. exd5 {[%emt 0:00:09]} Qc8 {[%emt 0:02:49]} 26. Qf3 {[%emt 0:01:06]} Qf8 {[%emt 0:04:55]} 27. Rh3 {[%emt 0:02:45]} Rc8 {[%emt 0:00:33]} 28. Qf5 {[%emt 0:00:21]} Rc4 {[%emt 0:01:59]} 29. Rf3 {[%emt 0:00:01]} g6 {[%emt 0:03:53]} 30. hxg6 {[%emt 0:01:37]} hxg6 {[%emt 0:00:11]} 31. Qh3 {[%emt 0:00:00]} Qc8 {[%emt 0:02:24]} 32. Qh2 {[%emt 0:01:06]} 1-0

[Event "Paracin Open 2020"]
[Site "Paracin"]
[Date "2020.07.04"]
[Round "3.15"]
[White "Todorovic, Nenad I"]
[Black "Vojinovic, Anastasija"]
[Result "1-0"]
[ECO "B90"]
[WhiteElo "2295"]
[BlackElo "1568"]
[Annotator "ChessBase"]
[PlyCount "49"]
[EventDate "2020.07.03"]
[EventType "swiss"]
[EventCountry "SRB"]
[SourceTitle "playchess.com"]
[Source "ChessBase"]
[SourceQuality "1"]
[TimeControl "5400+30"]

1. e4 {[%emt 0:00:00]} c5 {[%emt 0:00:00]} 2. Nf3 {[%emt 0:00:00]} d6 {[%emt 0:00:00]} 3. d4 {[%emt 0:00:07]} cxd4 {[%emt 0:00:03]} 4. Nxd4 {[%emt 0:00:04]} Nf6 {[%emt 0:00:30]} 5. Nc3 {[%emt 0:00:08]} a6 {[%emt 0:00:05]} 6. Be3 {[%emt 0:00:17]} e5 {[%emt 0:00:40]} 7. Nb3 {[%emt 0:00:21]} Be6 {[%emt 0:00:10]} 8. f3 {[%emt 0:00:08]} Be7 {[%emt 0:00:09]} 9. Qd2 {[%emt 0:00:14]} Nbd7 {[%emt 0:00:12]} 10. g4 {[%emt 0:00:26]} Qc7 {[%emt 0:01:55]} 11. g5 {[%emt 0:04:24]} Nh5 {[%emt 0:01:28]} 12. O-O-O {[%emt 0:01:14]} O-O {[%emt 0:02:16]} 13. Kb1 {[%emt 0:02:23]} b5 {[%emt 0:02:19]} 14. Nd5 {[%emt 0:01:57]} Bxd5 {[%emt 0:00:07]} 15. exd5 {[%emt 0:00:13]} Rfc8 {[%emt 0:08:50]} 16. Bh3 {[%emt 0:36:40]} Bd8 {[%emt 0:28:39]} 17. Bg4 {[%emt 0:15:31]} Nf4 {[%emt 0:00:03]} 18. h4 {[%emt 0:00:17]} a5 {[%emt 0:04:20]} 19. Bxf4 {[%emt 0:05:28]} exf4 {[%emt 0:00:02]} 20. Nd4 {[%emt 0:00:33]} Rcb8 {[%emt 0:03:49]} 21. Bxd7 {[%emt 0:01:36]} Qxd7 {[%emt 0:00:03]} 22. Nc6 {[%emt 0:00:17]} Rb6 {[%emt 0:01:26]} 23. Rde1 {[%emt 0:04:18]} b4 {[%emt 0:05:27]} 24. Qxf4 {[%emt 0:02:04]} Rb5 {[%emt 0:05:11]} 25. Qf5 {[%emt 0:02:56]} 1-0

[Event "Paracin Open 2020"]
[Site "Paracin"]
[Date "2020.07.04"]
[Round "3.16"]
[White "Petrovic, Marija"]
[Black "Ivic, Matija"]
[Result "0-1"]
[ECO "A04"]
[WhiteElo "1968"]
[BlackElo "2225"]
[Annotator "ChessBase"]
[PlyCount "138"]
[EventDate "2020.07.03"]
[EventType "swiss"]
[EventCountry "SRB"]
[SourceTitle "playchess.com"]
[Source "ChessBase"]
[SourceQuality "1"]
[TimeControl "5400+30"]

1. Nf3 {[%emt 0:00:00]} c5 {[%emt 0:00:00]} 2. e3 {[%emt 0:00:14]} Nf6 {[%emt 0:00:02]} 3. d4 {[%emt 0:00:07]} g6 {[%emt 0:00:16]} 4. c3 {[%emt 0:01:42]} Qc7 {[%emt 0:00:08]} 5. Bd3 {[%emt 0:01:48]} d5 {[%emt 0:00:12]} 6. Ne5 {[%emt 0:00:47]} Bg7 {[%emt 0:00:10]} 7. f4 {[%emt 0:01:08]} O-O {[%emt 0:00:25]} 8. Nd2 {[%emt 0:00:15]} Nc6 {[%emt 0:00:14]} 9. Ndf3 {[%emt 0:00:15]} Rb8 {[%emt 0:00:08]} 10. Qe2 {[%emt 0:05:10]} a6 {[%emt 0:01:32]} 11. a4 {[%emt 0:00:42]} c4 {[%emt 0:01:47]} 12. Bc2 {[%emt 0:00:05]} b5 {[%emt 0:00:10]} 13. axb5 {[%emt 0:01:57]} axb5 {[%emt 0:00:48]} 14. Nxc6 {[%emt 0:01:48]} Qxc6 {[%emt 0:00:07]} 15. Ne5 {[%emt 0:00:06]} Qc7 {[%emt 0:00:08]} 16. O-O {[%emt 0:01:30]} Bf5 {[%emt 0:01:51]} 17. Bxf5 {[%emt 0:08:58]} gxf5 {[%emt 0:00:03]} 18. g4 {[%emt 0:00:22]} fxg4 {[%emt 0:00:34]} 19. Nxg4 {[%emt 0:00:09]} Nxg4 {[%emt 0:00:56]} 20. Qxg4 {[%emt 0:00:07]} b4 {[%emt 0:00:53]} 21. Kh1 {[%emt 0:00:44]} f5 {[%emt 0:00:22]} 22. Qg5 {[%emt 0:02:17]} Rb6 {[%emt 0:00:53]} 23. cxb4 {[%emt 0:07:36]} Rxb4 {[%emt 0:02:33]} 24. Rg1 {[%emt 0:01:10]} e6 {[%emt 0:00:22]} 25. Ra6 {[%emt 0:04:30]} Re8 {[%emt 0:01:30]} 26. Qh5 {[%emt 0:02:29]} Re7 {[%emt 0:02:34]} 27. Qh4 {[%emt 0:22:04]} Re8 {[%emt 0:01:17]} 28. Qh5 {[%emt 0:00:12]} Re7 {[%emt 0:00:53]} 29. Qh4 {[%emt 0:00:08]} Re8 {[%emt 0:00:21]} 30. Qh5 {[%emt 0:00:06]} Rbb8 {[%emt 0:02:09]} 31. Bd2 {[%emt 0:04:03]} Qb7 {[%emt 0:00:29]} 32. Qg5 {[%emt 0:02:00]} Kh8 {[%emt 0:04:33]} 33. Bc3 {[%emt 0:04:53]} Ra8 {[%emt 0:01:48]} 34. Rxa8 {[%emt 0:01:36]} Rxa8 {[%emt 0:00:04]} 35. h4 {[%emt 0:00:36]} Qf7 {[%emt 0:00:20]} 36. h5 {[%emt 0:04:22]} Bf6 {[%emt 0:01:10]} 37. Qh6 {[%emt 0:00:14]} Rg8 {[%emt 0:01:04]} 38. Ra1 {[%emt 0:08:53]} Bg7 {[%emt 0:02:04]} 39. Qg5 {[%emt 0:00:06]} Bf6 {[%emt 0:03:13]} 40. Qh6 {[%emt 0:00:11]} Bd8 {[%emt 0:00:26]} 41. Ra6 {[%emt 0:03:16]} Bf6 {[%emt 0:05:54]} 42. Ra1 {[%emt 0:02:13]} Bd8 {[%emt 0:01:53]} 43. Ra8 {[%emt 0:00:32]} Bf6 {[%emt 0:02:16]} 44. Ra1 {[%emt 0:00:13]} Qe7 {[%emt 0:01:29]} 45. Bb4 {[%emt 0:04:31]} Qf7 {[%emt 0:00:02]} 46. Bd6 {[%emt 0:00:14]} Bg7 {[%emt 0:01:23]} 47. Be5 {[%emt 0:00:36]} Bxe5 {[%emt 0:00:05]} 48. fxe5 {[%emt 0:01:39]} Qe7 {[%emt 0:00:02]} 49. Qf6+ {[%emt 0:01:57]} Qxf6 {[%emt 0:00:01]} 50. exf6 {[%emt 0:00:03]} Rf8 {[%emt 0:00:08]} 51. h6 {[%emt 0:00:23]} Kg8 {[%emt 0:00:05]} 52. Ra7 {[%emt 0:00:48]} Rxf6 {[%emt 0:00:09]} 53. Rg7+ {[%emt 0:00:51]} Kh8 {[%emt 0:00:11]} 54. Re7 {[%emt 0:00:09]} Rxh6+ {[%emt 0:00:59]} 55. Kg2 {[%emt 0:00:00]} Kg8 {[%emt 0:00:27]} 56. Kg3 {[%emt 0:00:18]} Kf8 {[%emt 0:00:11]} 57. Rb7 {[%emt 0:00:06]} Rg6+ {[%emt 0:00:47]} 58. Kf4 {[%emt 0:00:17]} h5 {[%emt 0:04:06]} 59. Ke5 {[%emt 0:01:01]} Rh6 {[%emt 0:00:23]} 60. Rb8+ {[%emt 0:01:02]} Kf7 {[%emt 0:00:35]} 61. Rb7+ {[%emt 0:00:06]} Ke8 {[%emt 0:00:06]} 62. Rb8+ {[%emt 0:00:16]} Kd7 {[%emt 0:00:05]} 63. Rb7+ {[%emt 0:01:37]} Kc6 {[%emt 0:00:08]} 64. Rg7 {[%emt 0:00:14]} h4 {[%emt 0:00:06]} 65. Rg2 {[%emt 0:00:03]} h3 {[%emt 0:00:51]} 66. Rh2 {[%emt 0:00:01]} Kd7 {[%emt 0:00:15]} 67. Kf4 {[%emt 0:00:39]} Rh4+ {[%emt 0:00:39]} 68. Kg3 {[%emt 0:01:03]} Re4 {[%emt 0:00:09]} 69. Kf3 {[%emt 0:02:12]} f4 {[%emt 0:00:08]} 0-1

[Event "Paracin Open 2020"]
[Site "Paracin"]
[Date "2020.07.06"]
[Round "4.4"]
[White "Ernst, Sipke"]
[Black "Van Dael, Siem"]
[Result "1-0"]
[ECO "A45"]
[WhiteElo "2540"]
[BlackElo "2293"]
[Annotator "RC"]
[PlyCount "105"]
[EventDate "2020.07.03"]
[EventType "swiss"]
[EventCountry "SRB"]
[SourceTitle "playchess.com"]
[Source "ChessBase"]
[SourceQuality "1"]
[TimeControl "5400+30"]

1. d4 {[%emt 0:00:24]} Nf6 {[%emt 0:00:33]} 2. g3 {[%emt 0:00:09]} g6 {[%emt 0:00:12]} 3. Bg2 {[%emt 0:00:06]} Bg7 {[%emt 0:00:50]} 4. e4 {[%emt 0:00:07]} d6 {[%emt 0:00:05]} 5. Nc3 {[%emt 0:00:26]} O-O {[%emt 0:00:30]} 6. Nge2 {[%emt 0:00:29]} e5 {[%emt 0:05:36]} 7. h3 {[%emt 0:00:31]} Nc6 {[%emt 0:01:35]} 8. Be3 {[%emt 0:00:24]} exd4 {[%emt 0:02:15]} 9. Nxd4 {[%emt 0:00:06]} Bd7 {[%emt 0:00:15]} 10. Nde2 {[%emt 0:07:32]} Re8 {[%emt 0:03:15]} 11. O-O {[%emt 0:05:27]} Qc8 {[%emt 0:00:51]} 12. g4 {[%emt 0:05:01]} h5 {[%emt 0:03:02]} 13. g5 {[%emt 0:01:58]} Nh7 {[%emt 0:01:19]} 14. Kh2 {[%emt 0:00:15]} Ne5 {[%emt 0:04:32]} 15. f4 {[%emt 0:03:59]} Nc4 {[%emt 0:01:00]} 16. Bc1 {[%emt 0:00:16]} b5 {[%emt 0:04:33]} 17. a3 {[%emt 0:01:38]} Rb8 {[%emt 0:02:40]} 18. b3 {[%emt 0:03:38]} Nb6 {[%emt 0:10:08]} 19. Be3 {[%emt 0:01:00]} a5 {[%emt 0:00:44]} 20. Bd4 {[%emt 0:04:32]} Bf8 {[%emt 0:02:51]} 21. Nd5 {[%emt 0:07:13]} c5 {[%emt 0:07:04]} 22. Nxb6 {[%emt 0:05:59]} Rxb6 {[%emt 0:00:06]} 23. Bb2 {[%emt 0:01:10]} b4 {[%emt 0:01:08]} 24. axb4 {[%emt 0:01:18]} axb4 {[%emt 0:00:07]} 25. Ng3 {[%emt 0:02:23]} h4 {[%emt 0:07:59]} 26. Nh1 {[%emt 0:00:09]} d5 {[%emt 0:00:20]} 27. e5 {[%emt 0:04:04]} d4 {[%emt 0:01:13]} 28. Nf2 {[%emt 0:02:14]} Bb5 {[%emt 0:06:20]} 29. Nd3 {[%emt 0:11:18]} Qf5 {[%emt 0:10:56]} 30. Ra5 {[%emt 0:03:44]} Bc6 {[%emt 0:01:44]} 31. Qg4 {[%emt 0:06:18]} Be4 {[%emt 0:05:28]} 32. Qxf5 {[%emt 0:07:18]} gxf5 {[%emt 0:02:37]} 33. Nxc5 {[%emt 0:02:37]} Bxg2 {[%emt 0:02:35]} 34. Kxg2 {[%emt 0:00:04]} Rc6 {[%emt 0:00:05]} 35. Nd3 {[%emt 0:03:21]} Rxc2+ {[%emt 0:00:14]} 36. Rf2 {[%emt 0:00:04]} Rxf2+ {[%emt 0:03:49]} 37. Kxf2 {[%emt 0:00:05]} Rc8 {[%emt 0:02:31]} 38. Bxd4 {[%emt 0:01:39]} Rc2+ {[%emt 0:00:21]} 39. Ke1 {[%emt 0:02:10]} Rg2 {[%emt 0:00:45]} 40. Ra7 {[%emt 0:01:36]} Rg3 {[%emt 0:03:27]} 41. Ke2 {[%emt 0:00:04]} Bg7 {[%emt 0:00:04]} 42. Nxb4 {[%emt 0:01:22]} Rxb3 {[%emt 0:01:33]} 43. Nd5 {[%emt 0:00:18]} Nf8 {[%emt 0:01:35]} 44. Ne7+ {[%emt 0:00:11]} Kh7 {[%emt 0:00:07]} 45. Nxf5 {[%emt 0:00:15]} Ne6 {[%emt 0:00:04]} 46. Be3 {[%emt 0:00:18]} Bf8 {[%emt 0:00:20]} 47. Rxf7+ {[%emt 0:00:09]} Kg8 {[%emt 0:00:10]} 48. Rf6 {[%emt 0:00:13]} Nc7 {[%emt 0:01:07]} 49. Rg6+ {[%emt 0:01:49]} Kh7 {[%emt 0:00:10]} 50. Rc6 {[%emt 0:00:20]} Nd5 {[%emt 0:00:18]} 51. g6+ {[%emt 0:00:07]} Kg8 {[%emt 0:00:05]} 52. Rc8 {[%emt 0:00:46]} Nxe3 {[%emt 0:01:32]} 53. g7 {[%emt 0:00:28]} 1-0

[Event "Paracin Open 2020"]
[Site "Paracin"]
[Date "2020.07.06"]
[Round "4.6"]
[White "Kosic, Dragan"]
[Black "Sredojevic, Ivan"]
[Result "1/2-1/2"]
[ECO "D45"]
[WhiteElo "2429"]
[BlackElo "2239"]
[Annotator "ChessBase"]
[PlyCount "36"]
[EventDate "2020.07.03"]
[EventType "swiss"]
[EventCountry "SRB"]
[SourceTitle "playchess.com"]
[Source "ChessBase"]
[SourceQuality "1"]
[TimeControl "5400+30"]

1. d4 Nf6 2. Nf3 e6 3. c4 d5 4. Nc3 c6 5. e3 Nbd7 6. Qc2 Bd6 7. Bd3 O-O 8. O-O dxc4 9. Bxc4 e5 10. Bb3 Qe7 11. Bd2 e4 12. Ng5 Bxh2+ 13. Kxh2 Ng4+ 14. Kg1 Qxg5 15. Qxe4 Ndf6 16. Qf3 Qh4 17. Qh3 Qg5 18. Qg3 Nh5 1/2-1/2

[Event "Paracin Open 2020"]
[Site "Paracin"]
[Date "2020.07.06"]
[Round "4.7"]
[White "Sahin, Ozgun"]
[Black "Radovanovic, Nikola"]
[Result "1/2-1/2"]
[ECO "C44"]
[WhiteElo "2220"]
[BlackElo "2389"]
[Annotator "ChessBase"]
[PlyCount "32"]
[EventDate "2020.07.03"]
[EventType "swiss"]
[EventCountry "SRB"]
[SourceTitle "playchess.com"]
[Source "ChessBase"]
[SourceQuality "1"]
[TimeControl "5400+30"]

1. e4 {[%emt 0:00:00]} e5 {[%emt 0:00:00]} 2. Nf3 {[%emt 0:00:00]} Nc6 {[%emt 0:00:00]} 3. d4 {[%emt 0:00:00]} exd4 {[%emt 0:00:01]} 4. Nxd4 {[%emt 0:01:05]} Nf6 {[%emt 0:00:33]} 5. Nxc6 {[%emt 0:00:26]} bxc6 {[%emt 0:00:09]} 6. Bd3 {[%emt 0:00:14]} d5 {[%emt 0:04:14]} 7. exd5 {[%emt 0:00:17]} cxd5 {[%emt 0:00:05]} 8. O-O {[%emt 0:00:52]} Be7 {[%emt 0:00:39]} 9. c4 {[%emt 0:00:41]} O-O {[%emt 0:08:11]} 10. cxd5 {[%emt 0:01:30]} Bb7 {[%emt 0:06:31]} 11. Nc3 {[%emt 0:01:13]} Nxd5 {[%emt 0:01:06]} 12. Bd2 {[%emt 0:00:14]} Rb8 {[%emt 0:25:58]} 13. Re1 {[%emt 0:27:59]} Bf6 {[%emt 0:08:01]} 14. Be4 {[%emt 0:07:33]} Nxc3 {[%emt 0:10:02]} 15. Bxc3 {[%emt 0:00:45]} Bxc3 {[%emt 0:00:16]} 16. bxc3 {[%emt 0:01:00]} Bxe4 {[%emt 0:04:10]} 1/2-1/2

[Event "Paracin Open 2020"]
[Site "Paracin"]
[Date "2020.07.06"]
[Round "4.8"]
[White "Damjanovic, Vuk"]
[Black "Abramovic, Bosko"]
[Result "1/2-1/2"]
[ECO "D00"]
[WhiteElo "2208"]
[BlackElo "2351"]
[Annotator "RC"]
[PlyCount "21"]
[EventDate "2020.07.03"]
[EventType "swiss"]
[EventCountry "SRB"]
[SourceTitle "playchess.com"]
[Source "ChessBase"]
[SourceQuality "1"]
[TimeControl "5400+30"]

1. d4 {[%emt 0:00:00]} d5 {[%emt 0:00:00]} 2. Bf4 {[%emt 0:00:39]} e6 {[%emt 0:01:06]} 3. e3 {[%emt 0:00:12]} Bd6 {[%emt 0:00:08]} 4. Bg3 {[%emt 0:00:24]} Qe7 {[%emt 0:01:39]} 5. c4 {[%emt 0:03:03]} Nf6 {[%emt 0:01:21]} 6. Nc3 {[%emt 0:01:19]} O-O {[%emt 0:00:12]} 7. Qc2 {[%emt 0:02:47]} c5 {[%emt 0:02:16]} 8. dxc5 {[%emt 0:01:33]} Bxc5 {[%emt 0:00:24]} 9. Nf3 {[%emt 0:00:55]} Nc6 {[%emt 0:00:12]} 10. Be2 {[%emt 0:01:46]} a6 {[%emt 0:11:10]} 11. cxd5 {[%emt 0:02:03]} 1/2-1/2

[Event "Paracin Open 2020"]
[Site "Paracin"]
[Date "2020.07.06"]
[Round "4.9"]
[White "Radeva, Viktoria"]
[Black "Krasteva, Beloslava"]
[Result "1/2-1/2"]
[ECO "B84"]
[WhiteElo "2327"]
[BlackElo "2246"]
[Annotator "ChessBase"]
[PlyCount "120"]
[EventDate "2020.07.03"]
[EventType "swiss"]
[EventCountry "SRB"]
[SourceTitle "playchess.com"]
[Source "ChessBase"]
[SourceQuality "1"]
[TimeControl "5400+30"]

1. e4 {[%emt 0:00:00]} c5 {[%emt 0:00:00]} 2. Nf3 {[%emt 0:00:00]} d6 {[%emt 0:00:01]} 3. d4 {[%emt 0:00:00]} cxd4 {[%emt 0:00:18]} 4. Nxd4 {[%emt 0:00:00]} Nf6 {[%emt 0:00:21]} 5. Nc3 {[%emt 0:00:00]} a6 {[%emt 0:00:16]} 6. Be2 {[%emt 0:00:31]} e6 {[%emt 0:00:43]} 7. O-O {[%emt 0:00:37]} Be7 {[%emt 0:00:26]} 8. f4 {[%emt 0:00:26]} O-O {[%emt 0:00:29]} 9. Qe1 {[%emt 0:00:54]} b5 {[%emt 0:01:34]} 10. a3 {[%emt 0:03:34]} Bb7 {[%emt 0:02:42]} 11. Bf3 {[%emt 0:01:25]} Qc7 {[%emt 0:01:01]} 12. Qg3 {[%emt 0:01:38]} Nc6 {[%emt 0:02:05]} 13. Be3 {[%emt 0:00:35]} Nxd4 {[%emt 0:01:09]} 14. Bxd4 {[%emt 0:00:06]} Bc6 {[%emt 0:01:00]} 15. Kh1 {[%emt 0:03:21]} Qb7 {[%emt 0:00:54]} 16. Rae1 {[%emt 0:00:30]} Rfd8 {[%emt 0:02:01]} 17. e5 {[%emt 0:04:23]} Ne8 {[%emt 0:05:33]} 18. Bxc6 {[%emt 0:12:41]} Qxc6 {[%emt 0:00:08]} 19. f5 {[%emt 0:00:03]} dxe5 {[%emt 0:04:40]} 20. Qxe5 {[%emt 0:04:03]} Bf6 {[%emt 0:02:36]} 21. fxe6 {[%emt 0:01:25]} fxe6 {[%emt 0:01:36]} 22. Bc5 {[%emt 0:00:43]} h6 {[%emt 0:03:54]} 23. Qxe6+ {[%emt 0:07:35]} Qxe6 {[%emt 0:00:09]} 24. Rxe6 {[%emt 0:00:04]} Bxc3 {[%emt 0:06:21]} 25. bxc3 {[%emt 0:02:14]} Nc7 {[%emt 0:01:34]} 26. Re5 {[%emt 0:07:02]} Rd5 {[%emt 0:03:05]} 27. Rxd5 {[%emt 0:03:39]} Nxd5 {[%emt 0:00:26]} 28. Bd4 {[%emt 0:00:11]} Rc8 {[%emt 0:01:24]} 29. Rf3 {[%emt 0:01:25]} Rc4 {[%emt 0:06:52]} 30. Rg3 {[%emt 0:01:19]} g5 {[%emt 0:04:15]} 31. h4 {[%emt 0:01:43]} Nf4 {[%emt 0:00:28]} 32. hxg5 {[%emt 0:00:26]} Ne2 {[%emt 0:00:10]} 33. Re3 {[%emt 0:04:46]} Nxd4 {[%emt 0:00:07]} 34. cxd4 {[%emt 0:00:04]} hxg5 {[%emt 0:00:32]} 35. Rg3 {[%emt 0:09:10]} Rxc2 {[%emt 0:07:11]} 36. Rxg5+ {[%emt 0:00:16]} Kf7 {[%emt 0:00:09]} 37. Rf5+ {[%emt 0:05:52]} Ke6 {[%emt 0:04:03]} 38. Rh5 {[%emt 0:01:00]} Ra2 {[%emt 0:03:58]} 39. Rh6+ {[%emt 0:00:29]} Kd5 {[%emt 0:00:08]} 40. Rxa6 {[%emt 0:00:05]} Kxd4 {[%emt 0:00:07]} 41. Ra8 {[%emt 0:01:32]} Kc4 {[%emt 0:02:39]} 42. Kh2 {[%emt 0:03:54]} Kb3 {[%emt 0:01:35]} 43. Ra5 {[%emt 0:00:17]} Kc4 {[%emt 0:01:04]} 44. Kh3 {[%emt 0:00:36]} Kc5 {[%emt 0:00:15]} 45. g4 {[%emt 0:00:39]} Kb6 {[%emt 0:00:20]} 46. Ra8 {[%emt 0:00:07]} Kb7 {[%emt 0:00:06]} 47. Ra5 {[%emt 0:00:07]} Kb6 {[%emt 0:00:07]} 48. Ra8 {[%emt 0:00:13]} Kb7 {[%emt 0:00:14]} 49. Rf8 {[%emt 0:04:46]} Rxa3+ {[%emt 0:00:36]} 50. Kh4 {[%emt 0:00:04]} b4 {[%emt 0:02:01]} 51. g5 {[%emt 0:00:27]} b3 {[%emt 0:00:21]} 52. Rf4 {[%emt 0:02:06]} Kc6 {[%emt 0:00:21]} 53. Rb4 {[%emt 0:00:14]} Kc5 {[%emt 0:00:13]} 54. Rb8 {[%emt 0:00:08]} Kc4 {[%emt 0:00:18]} 55. g6 {[%emt 0:00:08]} Ra7 {[%emt 0:00:39]} 56. Kh5 {[%emt 0:00:14]} Kc3 {[%emt 0:00:19]} 57. Kh6 {[%emt 0:00:07]} b2 {[%emt 0:00:20]} 58. g7 {[%emt 0:00:10]} Rxg7 {[%emt 0:00:08]} 59. Kxg7 {[%emt 0:00:04]} Kc2 {[%emt 0:00:07]} 60. Rxb2+ {[%emt 0:00:07]} Kxb2 {[%emt 0:00:04]} 1/2-1/2

[Event "Paracin Open 2020"]
[Site "Paracin"]
[Date "2020.07.06"]
[Round "4.10"]
[White "Pastar, Slaven"]
[Black "Pantic, Ivica"]
[Result "1-0"]
[ECO "A46"]
[WhiteElo "2323"]
[BlackElo "2131"]
[Annotator "RC"]
[PlyCount "25"]
[EventDate "2020.07.03"]
[EventType "swiss"]
[EventCountry "SRB"]
[SourceTitle "playchess.com"]
[Source "ChessBase"]
[SourceQuality "1"]
[TimeControl "5400+30"]

1. d4 {[%emt 0:00:00]} Nf6 {[%emt 0:05:05]} 2. Nf3 {[%emt 0:00:48]} e6 {[%emt 0:02:25]} 3. Bf4 {[%emt 0:00:18]} Be7 {[%emt 0:00:09]} 4. h3 {[%emt 0:00:28]} O-O {[%emt 0:00:06]} 5. e3 {[%emt 0:00:05]} b6 {[%emt 0:00:30]} 6. Bd3 {[%emt 0:00:30]} Bb7 {[%emt 0:00:30]} 7. Nbd2 {[%emt 0:00:30]} c5 {[%emt 0:00:30]} 8. O-O {[%emt 0:00:30]} d6 {[%emt 0:00:00]} 9. c3 {[%emt 0:01:26]} Nbd7 {[%emt 0:01:31]} 10. Re1 {[%emt 0:01:44]} Qc7 {[%emt 0:01:02]} 11. Bh2 {[%emt 0:00:56]} Rfd8 {[%emt 0:02:01]} 12. Qe2 {[%emt 0:00:27]} a6 {[%emt 0:02:33]} 13. a4 {[%emt 0:03:40]} 1-0

[Event "Paracin Open 2020"]
[Site "Paracin"]
[Date "2020.07.06"]
[Round "4.11"]
[White "Albers, Sasa"]
[Black "Todorovic, Nenad I"]
[Result "1/2-1/2"]
[ECO "B90"]
[WhiteElo "2120"]
[BlackElo "2295"]
[Annotator "ChessBase"]
[PlyCount "121"]
[EventDate "2020.07.03"]
[EventType "swiss"]
[EventCountry "SRB"]
[SourceTitle "playchess.com"]
[Source "ChessBase"]
[SourceQuality "1"]
[TimeControl "5400+30"]

1. e4 {[%emt 0:00:00]} c5 {[%emt 0:00:00]} 2. Nf3 {[%emt 0:00:00]} d6 {[%emt 0:00:00]} 3. d4 {[%emt 0:00:00]} cxd4 {[%emt 0:00:00]} 4. Nxd4 {[%emt 0:00:00]} Nf6 {[%emt 0:00:00]} 5. Nc3 {[%emt 0:00:01]} a6 {[%emt 0:00:04]} 6. Be3 {[%emt 0:00:06]} e5 {[%emt 0:00:35]} 7. Nb3 {[%emt 0:00:05]} Be6 {[%emt 0:00:17]} 8. f3 {[%emt 0:00:08]} Be7 {[%emt 0:00:33]} 9. Qd2 {[%emt 0:00:05]} O-O {[%emt 0:00:45]} 10. O-O-O {[%emt 0:01:24]} Nbd7 {[%emt 0:03:15]} 11. g4 {[%emt 0:03:17]} Nb6 {[%emt 0:01:08]} 12. Bxb6 {[%emt 0:08:14]} Qxb6 {[%emt 0:01:13]} 13. Kb1 {[%emt 0:01:58]} Rfd8 {[%emt 0:43:12]} 14. Nd5 {[%emt 0:02:04]} Nxd5 {[%emt 0:01:30]} 15. exd5 {[%emt 0:00:03]} Bd7 {[%emt 0:00:07]} 16. Bd3 {[%emt 0:05:34]} a5 {[%emt 0:00:11]} 17. Nc1 {[%emt 0:01:06]} Rdc8 {[%emt 0:02:34]} 18. Ne2 {[%emt 0:03:09]} Rc5 {[%emt 0:06:38]} 19. Ng3 {[%emt 0:02:08]} Rac8 {[%emt 0:07:08]} 20. h4 {[%emt 0:24:41]} e4 {[%emt 0:11:45]} 21. Nxe4 {[%emt 0:05:19]} Rxd5 {[%emt 0:00:05]} 22. g5 {[%emt 0:14:53]} a4 {[%emt 0:06:04]} 23. a3 {[%emt 0:05:50]} Ra5 {[%emt 0:04:07]} 24. Rhg1 {[%emt 0:02:00]} Kh8 {[%emt 0:00:54]} 25. Qf2 {[%emt 0:08:21]} Qc7 {[%emt 0:04:23]} 26. Rge1 {[%emt 0:04:07]} d5 {[%emt 0:00:21]} 27. Ng3 {[%emt 0:03:07]} Bc5 {[%emt 0:00:05]} 28. Qd2 {[%emt 0:00:20]} Qb6 {[%emt 0:00:21]} 29. Ka2 {[%emt 0:01:42]} Bf2 {[%emt 0:00:48]} 30. Re7 {[%emt 0:00:30]} Be6 {[%emt 0:00:53]} 31. Qb4 {[%emt 0:03:10]} Qd8 {[%emt 0:01:40]} 32. Nh1 {[%emt 0:00:46]} Bc5 {[%emt 0:02:09]} 33. Re8+ {[%emt 0:00:02]} Qxe8 {[%emt 0:00:01]} 34. Qxa5 {[%emt 0:00:01]} Qc6 {[%emt 0:00:54]} 35. Kb1 {[%emt 0:01:08]} Bd6 {[%emt 0:01:37]} 36. Nf2 {[%emt 0:00:55]} Bc7 {[%emt 0:01:34]} 37. Qb4 {[%emt 0:00:46]} Bd6 {[%emt 0:00:11]} 38. Qa5 {[%emt 0:00:13]} Bd7 {[%emt 0:00:16]} 39. Ng4 {[%emt 0:00:36]} b6 {[%emt 0:00:17]} 40. Qd2 {[%emt 0:00:13]} b5 {[%emt 0:00:14]} 41. h5 {[%emt 0:01:14]} Bxg4 {[%emt 0:01:59]} 42. fxg4 {[%emt 0:00:02]} Be5 {[%emt 0:00:33]} 43. Qf2 {[%emt 0:00:55]} Qc7 {[%emt 0:00:32]} 44. Re1 {[%emt 0:00:43]} g6 {[%emt 0:00:33]} 45. hxg6 {[%emt 0:00:47]} hxg6 {[%emt 0:00:28]} 46. Bxb5 {[%emt 0:00:42]} Rb8 {[%emt 0:00:24]} 47. Qe2 {[%emt 0:00:18]} Bg7 {[%emt 0:00:39]} 48. c3 {[%emt 0:00:35]} Qc5 {[%emt 0:00:14]} 49. Bxa4 {[%emt 0:00:35]} Kg8 {[%emt 0:00:47]} 50. Bd7 {[%emt 0:00:35]} Qxc3 {[%emt 0:00:30]} 51. Qe8+ {[%emt 0:00:12]} Bf8 {[%emt 0:00:09]} 52. Qxb8 {[%emt 0:00:26]} Qxe1+ {[%emt 0:00:02]} 53. Ka2 {[%emt 0:00:03]} d4 {[%emt 0:00:25]} 54. Qb3 {[%emt 0:00:40]} Qe2 {[%emt 0:01:05]} 55. Qd5 {[%emt 0:01:01]} Bg7 {[%emt 0:00:50]} 56. Qa8+ {[%emt 0:00:31]} Kh7 {[%emt 0:00:10]} 57. Qh1+ {[%emt 0:00:02]} Kg8 {[%emt 0:00:05]} 58. Qa8+ {[%emt 0:00:17]} Kh7 {[%emt 0:00:27]} 59. Qh1+ {[%emt 0:00:19]} Kg8 {[%emt 0:00:05]} 60. Qa8+ {[%emt 0:00:09]} Kh7 {[%emt 0:01:18]} 61. Qh1+ {[%emt 0:00:13]} 1/2-1/2